Workbook

Sheet Data
A1: =LOOKUP(9.999E+307,A$16:A$249) -> 2007-03-03 | B1: OZGRID.COM | C1: OPLOSSING.BE | D1: HELPMIJ.NL | E1: MREXCEL.COM | F1: WORKSHEET.NL
A2: start: | B2: 2005-08-15 | C2: 2004-03-12 | D2: 2006-04-06 | E2: 2006-07-10 | F2: 2006-11-28
A3: titel: | B3: Most valued member | C3: Full member | D3: Giga Senior | E3: Board regular | F3: Senior Member
A4: plaats: | B4: 12/33006 | C4: / | D4: 50/62798 | E4: 490/73016 (p. 25) | F4: 6/7540
A5: dagen: | B5: =$A$1-B2 -> 565 | C5: =$A$1-C2 -> 1086 | D5: =$A$1-D2 -> 331 | E5: =$A$1-E2 -> 236 | F5: =$A$1-F2 -> 95
A7: posts: | B7: =LOOKUP(9.999E+307,B$16:B$249) -> 2424 | C7: =LOOKUP(9.999E+307,C$16:C$249) -> 366 | D7: =LOOKUP(9.999E+307,D$16:D$249) -> 4926 | E7: =LOOKUP(9.999E+307,E$16:E$249) -> 258 | F7: =LOOKUP(9.999E+307,F$16:F$249) -> 377 | G7: =SUM(B7:F7) -> 8351
A8: per dag: | B8: =B7/B5 -> 4.290265487 | C8: =C7/C5 -> 0.3370165746 | D8: =D7/D5 -> 14.88217523 | E8: =E7/E5 -> 1.093220339 | F8: =F7/F5 -> 3.968421053 | G8: =SUM(B8:F8) -> 24.57109868
G9: =LOOKUP(9.999E+307,M$16:M$231)&" & "&LOOKUP(9.999E+307,J$16:J$231) -> 64 & 58
A16: 2006-04-15 | B16: 1024 | C16: 150 | D16: 74 | E16: 0 | F16: 0 | G16: =SUM(B16:F16) -> 1248
A17: 2006-04-16 | B17: 1030 | C17: 150 | D17: 75 | E17: 0 | F17: 0 | G17: 1255 | H17: =IF(ISBLANK(B17),"",(B17-B16)/($A17-$A16)) -> 6 | I17: 0 | J17: 1 | K17: 0 | L17: =IF(ISBLANK(F17),"",(F17-F16)/($A17-$A16)) -> 0 | M17: =IF(ISBLANK(B17),"",(G17-G16)/($A17-$A16)) -> 7
A18: 2006-04-17 | B18: 1045 | C18: 153 | D18: 83 | E18: 0 | F18: 0 | G18: 1281 | H18: 15 | I18: 3 | J18: 8 | K18: 0 | L18: 0 | M18: 26
A19: 2006-04-18 | B19: 1061 | C19: 154 | D19: 87 | E19: 0 | F19: 0 | G19: 1302 | H19: 16 | I19: 1 | J19: 4 | K19: 0 | L19: 0 | M19: 21
A20: 2006-04-19 | B20: 1083 | C20: 155 | D20: 91 | E20: 0 | F20: 0 | G20: 1329 | H20: 22 | I20: 1 | J20: 4 | K20: 0 | L20: 0 | M20: 27
A21: 2006-04-20 | B21: 1099 | C21: 157 | D21: 92 | E21: 0 | F21: 0 | G21: 1348 | H21: 16 | I21: 2 | J21: 1 | K21: 0 | L21: 0 | M21: 19
A22: 2006-04-21 | B22: 1107 | C22: 157 | D22: 102 | E22: 0 | F22: 0 | G22: 1366 | H22: 8 | I22: 0 | J22: 10 | K22: 0 | L22: 0 | M22: 18
A23: 2006-04-22 | B23: 1115 | C23: 157 | D23: 110 | E23: 0 | F23: 0 | G23: 1382 | H23: 8 | I23: 0 | J23: 8 | K23: 0 | L23: 0 | M23: 16
A24: 2006-04-24 | B24: 1128 | C24: 159 | D24: 120 | E24: 0 | F24: 0 | G24: 1407 | H24: 6.5 | I24: 1 | J24: 5 | K24: 0 | L24: 0 | M24: 12.5
A25: 2006-04-25 | B25: 1144 | C25: 161 | D25: 131 | E25: 0 | F25: 0 | G25: 1436 | H25: =IF(ISBLANK(B25),"",(B25-B24)/($A25-$A24)) -> 16 | I25: =IF(ISBLANK(C25),"",(C25-C24)/($A25-$A24)) -> 2 | J25: =IF(ISBLANK(D25),"",(D25-D24)/($A25-$A24)) -> 11 | K25: =IF(ISBLANK(E25),"",(E25-E24)/($A25-$A24)) -> 0 | L25: 0 | M25: 29
A26: 2006-04-26 | B26: 1152 | C26: 161 | D26: 133 | E26: 0 | F26: 0 | G26: 1446 | H26: 8 | I26: 0 | J26: 2 | K26: 0 | L26: 0 | M26: 10
A27: 2006-04-29 | B27: 1152 | C27: 162 | D27: 137 | E27: 0 | F27: 0 | G27: 1451 | H27: 0 | I27: 0.3333333333 | J27: 1.333333333 | K27: 0 | L27: 0 | M27: 1.666666667
A28: 2006-05-08 | B28: 1173 | C28: 169 | D28: 164 | E28: 0 | F28: 0 | G28: 1506 | H28: 2.333333333 | I28: 0.7777777778 | J28: 3 | K28: 0 | L28: 0 | M28: 6.111111111
A29: 2006-05-09 | B29: 1191 | C29: 169 | D29: 176 | E29: 0 | F29: 0 | G29: 1536 | H29: 18 | I29: 0 | J29: 12 | K29: 0 | L29: 0 | M29: 30
A30: 2006-05-10 | B30: 1199 | C30: 171 | D30: 194 | E30: 0 | F30: 0 | G30: 1564 | H30: 8 | I30: 2 | J30: 18 | K30: 0 | L30: 0 | M30: 28
A31: 2006-05-11 | B31: 1212 | C31: 173 | D31: 210 | E31: 0 | F31: 0 | G31: 1595 | H31: 13 | I31: 2 | J31: 16 | K31: 0 | L31: 0 | M31: 31
A32: 2006-05-12 | B32: 1224 | C32: 173 | D32: 215 | E32: 0 | F32: 0 | G32: 1612 | H32: 12 | I32: 0 | J32: 5 | K32: 0 | L32: 0 | M32: 17
A33: 2006-05-13 | B33: 1226 | C33: 174 | D33: 215 | E33: 0 | F33: 0 | G33: 1615 | H33: =IF(ISBLANK(B33),"",(B33-B32)/($A33-$A32)) -> 2 | I33: =IF(ISBLANK(C33),"",(C33-C32)/($A33-$A32)) -> 1 | J33: =IF(ISBLANK(D33),"",(D33-D32)/($A33-$A32)) -> 0 | K33: 0 | L33: 0 | M33: 3
A34: 2006-05-14 | B34: 1229 | C34: 175 | D34: 215 | E34: 0 | F34: 0 | G34: 1619 | H34: 3 | I34: 1 | J34: 0 | K34: 0 | L34: 0 | M34: 4
A35: 2006-05-15 | B35: 1238 | C35: 176 | D35: 222 | E35: 0 | F35: 0 | G35: 1636 | H35: 9 | I35: 1 | J35: 7 | K35: 0 | L35: 0 | M35: 17
A36: 2006-05-16 | B36: 1252 | C36: 177 | D36: 242 | E36: 0 | F36: 0 | G36: 1671 | H36: 14 | I36: 1 | J36: 20 | K36: 0 | L36: 0 | M36: 35
A37: 2006-05-17 | B37: 1259 | C37: 177 | D37: 256 | E37: 0 | F37: 0 | G37: 1692 | H37: 7 | I37: 0 | J37: 14 | K37: 0 | L37: 0 | M37: 21
A38: 2006-05-18 | B38: 1273 | C38: 177 | D38: 272 | E38: 0 | F38: 0 | G38: 1722 | H38: 14 | I38: 0 | J38: 16 | K38: 0 | L38: 0 | M38: 30
A39: 2006-05-19 | B39: 1289 | C39: 177 | D39: 299 | E39: 0 | F39: 0 | G39: 1765 | H39: 16 | I39: 0 | J39: 27 | K39: 0 | L39: 0 | M39: 43
A40: 2006-05-20 | B40: 1295 | C40: 180 | D40: 311 | E40: 0 | F40: 0 | G40: 1786 | H40: 6 | I40: 3 | J40: 12 | K40: 0 | L40: 0 | M40: 21
A41: 2006-05-21 | B41: 1297 | C41: 180 | D41: 315 | E41: 0 | F41: 0 | G41: 1792 | H41: 2 | I41: 0 | J41: 4 | K41: 0 | L41: 0 | M41: 6
A42: 2006-05-22 | B42: 1307 | C42: 183 | D42: 321 | E42: 0 | F42: 0 | G42: 1811 | H42: 10 | I42: 3 | J42: 6 | K42: 0 | L42: 0 | M42: 19
A43: 2006-05-23 | B43: 1313 | C43: 184 | D43: 331 | E43: 0 | F43: 0 | G43: 1828 | H43: 6 | I43: 1 | J43: 10 | K43: 0 | L43: 0 | M43: 17
A44: 2006-05-24 | B44: 1322 | C44: 186 | D44: 362 | E44: 0 | F44: 0 | G44: 1870 | H44: 9 | I44: 2 | J44: 31 | K44: 0 | L44: 0 | M44: 42
A45: 2006-05-25 | B45: 1325 | C45: 190 | D45: 370 | E45: 0 | F45: 0 | G45: 1885 | H45: 3 | I45: 4 | J45: 8 | K45: 0 | L45: 0 | M45: 15
A46: 2006-05-26 | B46: 1325 | C46: 190 | D46: 372 | E46: 0 | F46: 0 | G46: 1887 | H46: 0 | I46: 0 | J46: 2 | K46: 0 | L46: 0 | M46: 2
A47: 2006-05-27 | B47: 1328 | C47: 190 | D47: 380 | E47: 0 | F47: 0 | G47: 1898 | H47: 3 | I47: 0 | J47: 8 | K47: 0 | L47: 0 | M47: 11
A48: 2006-05-28 | B48: 1340 | C48: 190 | D48: 397 | E48: 0 | F48: 0 | G48: 1927 | H48: 12 | I48: 0 | J48: 17 | K48: 0 | L48: 0 | M48: 29
A49: 2006-05-29 | B49: 1347 | C49: 193 | D49: 404 | E49: 0 | F49: 0 | G49: 1944 | H49: 7 | I49: 3 | J49: 7 | K49: 0 | L49: 0 | M49: 17
A50: 2006-05-30 | B50: 1359 | C50: 202 | D50: 407 | E50: 0 | F50: 0 | G50: 1968 | H50: 12 | I50: 9 | J50: 3 | K50: 0 | L50: 0 | M50: 24
A51: 2006-05-31 | B51: 1359 | C51: 214 | D51: 419 | E51: 0 | F51: 0 | G51: 1992 | H51: 0 | I51: 12 | J51: 12 | K51: 0 | L51: 0 | M51: 24
A52: 2006-06-01 | B52: 1359 | C52: 216 | D52: 423 | E52: 0 | F52: 0 | G52: 1998 | H52: 0 | I52: 2 | J52: 4 | K52: 0 | L52: 0 | M52: 6
A53: 2006-06-03 | B53: 1359 | C53: 216 | D53: 431 | E53: 0 | F53: 0 | G53: 2006 | H53: =IF(ISBLANK(B53),"",(B53-B52)/($A53-$A52)) -> 0 | I53: =IF(ISBLANK(C53),"",(C53-C52)/($A53-$A52)) -> 0 | J53: =IF(ISBLANK(D53),"",(D53-D52)/($A53-$A52)) -> 4 | K53: 0 | L53: 0 | M53: 4
A54: 2006-06-04 | B54: 1359 | C54: 216 | D54: 435 | E54: 0 | F54: 0 | G54: 2010 | H54: 0 | I54: 0 | J54: 4 | K54: 0 | L54: 0 | M54: 4
A55: 2006-06-05 | B55: 1359 | C55: 216 | D55: 435 | E55: 0 | F55: 0 | G55: 2010 | H55: 0 | I55: 0 | J55: 0 | K55: 0 | L55: 0 | M55: 0
A56: 2006-06-06 | B56: 1359 | C56: 216 | D56: 436 | E56: 0 | F56: 0 | G56: 2011 | H56: 0 | I56: 0 | J56: 1 | K56: 0 | L56: 0 | M56: 1
A57: 2006-06-27 | B57: 1359 | C57: 220 | D57: 456 | E57: 0 | F57: 0 | G57: 2035 | H57: 0 | I57: 0.1904761905 | J57: 0.9523809524 | K57: 0 | L57: 0 | M57: 1.142857143
A58: 2006-07-04 | B58: 1359 | C58: 220 | D58: 485 | E58: 0 | F58: 0 | G58: 2064 | H58: 0 | I58: 0 | J58: 4.142857143 | K58: 0 | L58: 0 | M58: 4.142857143
A59: 2006-07-05 | B59: 1359 | C59: 220 | D59: 501 | E59: 0 | F59: 0 | G59: 2080 | H59: 0 | I59: 0 | J59: 16 | K59: 0 | L59: 0 | M59: 16
A60: 2006-07-06 | B60: 1361 | C60: 220 | D60: 512 | E60: 0 | F60: 0 | G60: 2093 | H60: 2 | I60: 0 | J60: 11 | K60: 0 | L60: 0 | M60: 13
A61: 2006-07-07 | B61: 1370 | C61: 220 | D61: 521 | E61: 0 | F61: 0 | G61: 2111 | H61: 9 | I61: 0 | J61: 9 | K61: 0 | L61: 0 | M61: 18
A62: 2006-07-08 | B62: 1372 | C62: 220 | D62: 521 | E62: 0 | F62: 0 | G62: 2113 | H62: 2 | I62: 0 | J62: 0 | K62: 0 | L62: 0 | M62: 2
A63: 2006-07-09 | B63: 1372 | C63: 220 | D63: 521 | E63: 0 | F63: 0 | G63: 2113 | H63: 0 | I63: 0 | J63: 0 | K63: 0 | L63: 0 | M63: 0
A64: 2006-07-10 | B64: 1372 | C64: 220 | D64: 521 | E64: 3 | F64: 0 | G64: 2116 | H64: 0 | I64: 0 | J64: 0 | K64: 3 | L64: 0 | M64: 3
A65: 2006-07-11 | B65: 1400 | C65: 220 | D65: 540 | E65: 25 | F65: 0 | G65: 2185 | H65: 28 | I65: 0 | J65: 19 | K65: 22 | L65: 0 | M65: 69
A66: 2006-07-12 | B66: 1429 | C66: 220 | D66: 568 | E66: 41 | F66: 0 | G66: 2258 | H66: =IF(ISBLANK(B66),"",(B66-B65)/($A66-$A65)) -> 29 | I66: 0 | J66: 28 | K66: 16 | L66: 0 | M66: 73
A67: 2006-07-13 | B67: 1458 | C67: 221 | D67: 577 | E67: 65 | F67: 0 | G67: 2321 | H67: 29 | I67: 1 | J67: 9 | K67: 24 | L67: 0 | M67: 63
A68: 2006-07-14 | B68: 1471 | C68: 222 | D68: 587 | E68: 77 | F68: 0 | G68: 2357 | H68: =IF(ISBLANK(B68),"",(B68-B67)/($A68-$A67)) -> 13 | I68: 1 | J68: 10 | K68: 12 | L68: 0 | M68: 36
A69: 2006-07-15 | B69: 1478 | C69: 225 | D69: 593 | E69: 93 | F69: 0 | G69: 2389 | H69: 7 | I69: 3 | J69: 6 | K69: 16 | L69: 0 | M69: 32
A70: 2006-07-16 | B70: 1490 | C70: 225 | D70: 597 | E70: 110 | F70: 0 | G70: 2422 | H70: 12 | I70: 0 | J70: 4 | K70: 17 | L70: 0 | M70: 33
A71: 2006-07-17 | B71: 1502 | C71: 227 | D71: 602 | E71: 120 | F71: 0 | G71: 2451 | H71: 12 | I71: 2 | J71: 5 | K71: 10 | L71: 0 | M71: 29
A72: 2006-07-18 | B72: 1519 | C72: 228 | D72: 608 | E72: 134 | F72: 0 | G72: 2489 | H72: 17 | I72: 1 | J72: 6 | K72: 14 | L72: 0 | M72: 38
A73: 2006-07-19 | B73: 1535 | C73: 232 | D73: 618 | E73: 160 | F73: 0 | G73: 2545 | H73: 16 | I73: 4 | J73: 10 | K73: 26 | L73: 0 | M73: 56
A74: 2006-07-21 | B74: 1543 | C74: 232 | D74: 625 | E74: 163 | F74: 0 | G74: 2563 | H74: =IF(ISBLANK(B74),"",(B74-B73)/($A74-$A73)) -> 4 | I74: =IF(ISBLANK(C74),"",(C74-C73)/($A74-$A73)) -> 0 | J74: =IF(ISBLANK(D74),"",(D74-D73)/($A74-$A73)) -> 3.5 | K74: =IF(ISBLANK(E74),"",(E74-E73)/($A74-$A73)) -> 1.5 | L74: 0 | M74: 9
A75: 2006-07-25 | B75: 1569 | C75: 241 | D75: 641 | E75: 168 | F75: 0 | G75: 2619 | H75: =IF(ISBLANK(B75),"",(B75-B74)/($A75-$A74)) -> 6.5 | I75: 2.25 | J75: 4 | K75: 1.25 | L75: 0 | M75: 14
A76: 2006-07-26 | B76: 1569 | C76: 241 | D76: 643 | E76: 168 | F76: 0 | G76: 2621 | H76: 0 | I76: 0 | J76: 2 | K76: 0 | L76: 0 | M76: 2
A77: 2006-07-27 | B77: 1575 | C77: 241 | D77: 653 | E77: 168 | F77: 0 | G77: 2637 | H77: 6 | I77: 0 | J77: 10 | K77: 0 | L77: 0 | M77: 16
A78: 2006-07-28 | B78: 1586 | C78: 244 | D78: 660 | E78: 170 | F78: 0 | G78: 2660 | H78: 11 | I78: 3 | J78: 7 | K78: 2 | L78: 0 | M78: 23
A79: 2006-07-30 | B79: 1594 | C79: 244 | D79: 673 | E79: 170 | F79: 0 | G79: 2681 | H79: 4 | I79: 0 | J79: 6.5 | K79: 0 | L79: 0 | M79: 10.5
A80: 2006-07-31 | B80: 1627 | C80: 247 | D80: 690 | E80: 170 | F80: 0 | G80: =SUM(B80:F80) -> 2734 | H80: 33 | I80: 3 | J80: 17 | K80: 0 | L80: 0 | M80: 53
A81: 2006-08-01 | B81: 1635 | C81: 247 | D81: 701 | E81: 170 | F81: 0 | G81: 2753 | H81: =IF(ISBLANK(B81),"",(B81-B80)/($A81-$A80)) -> 8 | I81: 0 | J81: 11 | K81: 0 | L81: =IF(ISBLANK(F81),"",(F81-F80)/($A81-$A80)) -> 0 | M81: =IF(ISBLANK(B81),"",(G81-G80)/($A81-$A80)) -> 19
A82: 2006-08-02 | B82: 1665 | C82: 248 | D82: 720 | E82: 170 | F82: 0 | G82: 2803 | H82: 30 | I82: 1 | J82: 19 | K82: 0 | L82: 0 | M82: 50
A83: 2006-08-03 | B83: 1679 | C83: 249 | D83: 742 | E83: 180 | F83: 0 | G83: 2850 | H83: 14 | I83: 1 | J83: 22 | K83: 10 | L83: 0 | M83: 47
A84: 2006-08-04 | B84: 1691 | C84: 251 | D84: 760 | E84: 190 | F84: 0 | G84: 2892 | H84: 12 | I84: 2 | J84: 18 | K84: 10 | L84: 0 | M84: 42
A85: 2006-08-06 | B85: 1691 | C85: 251 | D85: 770 | E85: 190 | F85: 0 | G85: 2902 | H85: =IF(ISBLANK(B85),"",(B85-B84)/($A85-$A84)) -> 0 | I85: 0 | J85: 5 | K85: 0 | L85: 0 | M85: 5
A86: 2006-08-13 | B86: 1729 | C86: 257 | D86: 859 | E86: 191 | F86: 0 | G86: 3036 | H86: 5.428571429 | I86: 0.8571428571 | J86: 12.71428571 | K86: 0.1428571429 | L86: 0 | M86: 19.14285714
A87: 2006-08-15 | B87: 1753 | C87: 264 | D87: 887 | E87: 207 | F87: 0 | G87: 3111 | H87: 12 | I87: 3.5 | J87: 14 | K87: 8 | L87: 0 | M87: 37.5
A88: 2006-08-16 | B88: 1770 | C88: 264 | D88: 917 | E88: 207 | F88: 0 | G88: 3158 | H88: 17 | I88: 0 | J88: 30 | K88: 0 | L88: 0 | M88: 47
A89: 2006-08-18 | B89: 1798 | C89: 265 | D89: 990 | E89: 218 | F89: 0 | G89: 3271 | H89: 14 | I89: 0.5 | J89: 36.5 | K89: 5.5 | L89: 0 | M89: 56.5
A90: 2006-08-20 | B90: 1800 | C90: 267 | D90: 1004 | E90: 218 | F90: 0 | G90: 3289 | H90: 1 | I90: 1 | J90: 7 | K90: 0 | L90: 0 | M90: 9
A91: 2006-08-29 | B91: 1826 | C91: 272 | D91: 1098 | E91: 219 | F91: 0 | G91: 3415 | H91: 2.888888889 | I91: 0.5555555556 | J91: 10.44444444 | K91: 0.1111111111 | L91: 0 | M91: 14
A92: 2006-08-30 | B92: 1828 | C92: 272 | D92: 1139 | E92: 219 | F92: 0 | G92: 3458 | H92: 2 | I92: 0 | J92: 41 | K92: 0 | L92: 0 | M92: 43
A93: 2006-08-31 | B93: 1831 | C93: 276 | D93: 1154 | E93: 219 | F93: 0 | G93: 3480 | H93: =IF(ISBLANK(B93),"",(B93-B92)/($A93-$A92)) -> 3 | I93: 4 | J93: 15 | K93: 0 | L93: 0 | M93: 22
A94: 2006-09-01 | B94: 1831 | C94: 278 | D94: 1163 | E94: 219 | F94: 0 | G94: 3491 | H94: 0 | I94: 2 | J94: 9 | K94: 0 | L94: 0 | M94: 11
A95: 2006-09-04 | B95: 1831 | C95: 280 | D95: 1185 | E95: 219 | F95: 0 | G95: 3515 | H95: 0 | I95: 0.6666666667 | J95: 7.333333333 | K95: 0 | L95: 0 | M95: 8
A96: 2006-09-05 | B96: 1833 | C96: 280 | D96: 1194 | E96: 219 | F96: 0 | G96: 3526 | H96: 2 | I96: 0 | J96: 9 | K96: 0 | L96: 0 | M96: 11
A97: 2006-09-07 | B97: 1851 | C97: 296 | D97: 1216 | E97: 219 | F97: 0 | G97: 3582 | H97: 9 | I97: 8 | J97: 11 | K97: 0 | L97: 0 | M97: 28
A98: 2006-09-08 | B98: 1855 | C98: 306 | D98: 1220 | E98: 219 | F98: 0 | G98: 3600 | H98: =IF(ISBLANK(B98),"",(B98-B97)/($A98-$A97)) -> 4 | I98: 10 | J98: 4 | K98: 0 | L98: 0 | M98: 18
A99: 2006-09-11 | B99: 1860 | C99: 309 | D99: 1256 | E99: 219 | F99: 0 | G99: 3644 | H99: 1.666666667 | I99: 1 | J99: 12 | K99: 0 | L99: 0 | M99: 14.66666667
A100: 2006-09-12 | B100: 1867 | C100: 312 | D100: 1276 | E100: 219 | F100: 0 | G100: 3674 | H100: 7 | I100: 3 | J100: 20 | K100: 0 | L100: 0 | M100: 30
A101: 2006-09-13 | B101: 1869 | C101: 314 | D101: 1300 | E101: 219 | F101: 0 | G101: 3702 | H101: =IF(ISBLANK(B101),"",(B101-B100)/($A101-$A100)) -> 2 | I101: 2 | J101: 24 | K101: 0 | L101: 0 | M101: 28
A102: 2006-09-14 | B102: 1870 | C102: 317 | D102: 1337 | E102: 219 | F102: 0 | G102: 3743 | H102: 1 | I102: 3 | J102: 37 | K102: 0 | L102: 0 | M102: 41
A103: 2006-09-15 | B103: 1874 | C103: 318 | D103: 1382 | E103: 219 | F103: 0 | G103: 3793 | H103: =IF(ISBLANK(B103),"",(B103-B102)/($A103-$A102)) -> 4 | I103: =IF(ISBLANK(C103),"",(C103-C102)/($A103-$A102)) -> 1 | J103: =IF(ISBLANK(D103),"",(D103-D102)/($A103-$A102)) -> 45 | K103: =IF(ISBLANK(E103),"",(E103-E102)/($A103-$A102)) -> 0 | L103: 0 | M103: 50
A104: 2006-09-16 | B104: 1880 | C104: 318 | D104: 1394 | E104: 221 | F104: 0 | G104: 3813 | H104: 6 | I104: 0 | J104: 12 | K104: 2 | L104: 0 | M104: 20
A105: 2006-09-17 | B105: 1880 | C105: 318 | D105: 1397 | E105: 221 | F105: 0 | G105: 3816 | H105: 0 | I105: 0 | J105: 3 | K105: 0 | L105: 0 | M105: 3
A106: 2006-09-19 | B106: 1881 | C106: 318 | D106: 1438 | E106: 221 | F106: 0 | G106: 3858 | H106: 0.5 | I106: 0 | J106: 20.5 | K106: 0 | L106: 0 | M106: 21
A107: 2006-09-20 | B107: 1883 | C107: 322 | D107: 1450 | E107: 221 | F107: 0 | G107: 3876 | H107: 2 | I107: 4 | J107: 12 | K107: 0 | L107: 0 | M107: 18
A108: 2006-09-21 | B108: 1883 | C108: 323 | D108: 1487 | E108: 221 | F108: 0 | G108: 3914 | H108: 0 | I108: 1 | J108: 37 | K108: 0 | L108: 0 | M108: 38
A109: 2006-09-22 | B109: 1883 | C109: 328 | D109: 1529 | E109: 221 | F109: 0 | G109: 3961 | H109: 0 | I109: 5 | J109: 42 | K109: 0 | L109: 0 | M109: 47
A110: 2006-09-23 | B110: 1884 | C110: 328 | D110: 1537 | E110: 221 | F110: 0 | G110: 3970 | H110: 1 | I110: 0 | J110: 8 | K110: 0 | L110: 0 | M110: 9
A111: 2006-09-24 | B111: 1884 | C111: 332 | D111: 1537 | E111: 221 | F111: 0 | G111: 3974 | H111: 0 | I111: 4 | J111: 0 | K111: 0 | L111: 0 | M111: 4
A112: 2006-09-25 | B112: 1884 | C112: 332 | D112: 1553 | E112: 221 | F112: 0 | G112: 3990 | H112: 0 | I112: 0 | J112: 16 | K112: 0 | L112: 0 | M112: 16
A113: 2006-09-26 | B113: 1888 | C113: 332 | D113: 1583 | E113: 221 | F113: 0 | G113: 4024 | H113: 4 | I113: 0 | J113: 30 | K113: 0 | L113: 0 | M113: 34
A114: 2006-09-27 | B114: 1892 | C114: 349 | D114: 1635 | E114: 221 | F114: 0 | G114: 4097 | H114: =IF(ISBLANK(B114),"",(B114-B113)/($A114-$A113)) -> 4 | I114: =IF(ISBLANK(C114),"",(C114-C113)/($A114-$A113)) -> 17 | J114: =IF(ISBLANK(D114),"",(D114-D113)/($A114-$A113)) -> 52 | K114: =IF(ISBLANK(E114),"",(E114-E113)/($A114-$A113)) -> 0 | L114: 0 | M114: 73
A115: 2006-09-28 | B115: 1892 | C115: 352 | D115: 1671 | E115: 221 | F115: 0 | G115: 4136 | H115: 0 | I115: 3 | J115: 36 | K115: 0 | L115: 0 | M115: 39
A116: 2006-09-29 | B116: 1894 | C116: 356 | D116: 1714 | E116: 221 | F116: 0 | G116: 4185 | H116: 2 | I116: 4 | J116: 43 | K116: 0 | L116: 0 | M116: 49
A117: 2006-09-30 | B117: 1894 | C117: 356 | D117: 1724 | E117: 221 | F117: 0 | G117: 4195 | H117: 0 | I117: 0 | J117: 10 | K117: 0 | L117: 0 | M117: 10
A118: 2006-10-01 | B118: 1894 | C118: 356 | D118: 1734 | E118: 221 | F118: 0 | G118: 4205 | H118: 0 | I118: 0 | J118: 10 | K118: 0 | L118: 0 | M118: 10
A119: 2006-10-02 | B119: 1894 | C119: 358 | D119: 1745 | E119: 221 | F119: 0 | G119: 4218 | H119: 0 | I119: 2 | J119: 11 | K119: 0 | L119: 0 | M119: 13
A120: 2006-10-03 | B120: 1894 | C120: 362 | D120: 1759 | E120: 221 | F120: 0 | G120: 4236 | H120: 0 | I120: 4 | J120: 14 | K120: 0 | L120: 0 | M120: 18
A121: 2006-10-04 | B121: 1895 | C121: 362 | D121: 1780 | E121: 221 | F121: 0 | G121: 4258 | H121: 1 | I121: 0 | J121: 21 | K121: 0 | L121: 0 | M121: 22
A122: 2006-10-05 | B122: 1901 | C122: 362 | D122: 1824 | E122: 221 | F122: 0 | G122: 4308 | H122: 6 | I122: 0 | J122: 44 | K122: 0 | L122: 0 | M122: 50
A123: 2006-10-06 | B123: 1910 | C123: 364 | D123: 1852 | E123: 221 | F123: 0 | G123: 4347 | H123: 9 | I123: 2 | J123: 28 | K123: 0 | L123: 0 | M123: 39
A124: 2006-10-07 | B124: 1910 | C124: 364 | D124: 1862 | E124: 221 | F124: 0 | G124: 4357 | H124: 0 | I124: 0 | J124: 10 | K124: 0 | L124: 0 | M124: 10
A125: 2006-10-08 | B125: 1910 | C125: 365 | D125: 1866 | E125: 221 | F125: 0 | G125: 4362 | H125: =IF(ISBLANK(B125),"",(B125-B124)/($A125-$A124)) -> 0 | I125: =IF(ISBLANK(C125),"",(C125-C124)/($A125-$A124)) -> 1 | J125: =IF(ISBLANK(D125),"",(D125-D124)/($A125-$A124)) -> 4 | K125: =IF(ISBLANK(E125),"",(E125-E124)/($A125-$A124)) -> 0 | L125: 0 | M125: 5
A126: 2006-10-09 | B126: 1910 | C126: 366 | D126: 1877 | E126: 221 | F126: 0 | G126: 4374 | H126: 0 | I126: 1 | J126: 11 | K126: 0 | L126: 0 | M126: 12
A127: 2006-10-10 | B127: 1910 | C127: 366 | D127: 1903 | E127: 221 | F127: 0 | G127: 4400 | H127: 0 | I127: 0 | J127: 26 | K127: 0 | L127: 0 | M127: 26
A128: 2006-10-12 | B128: 1910 | C128: 366 | D128: 1905 | E128: 221 | F128: 0 | G128: 4402 | H128: 0 | I128: 0 | J128: 1 | K128: 0 | L128: 0 | M128: 1
A129: 2006-10-15 | B129: 1922 | C129: 366 | D129: 1905 | E129: 221 | F129: 0 | G129: 4414 | H129: 4 | I129: 0 | J129: 0 | K129: 0 | L129: 0 | M129: 4
A130: 2006-10-16 | B130: 1924 | C130: 366 | D130: 1920 | E130: 231 | F130: 0 | G130: 4441 | H130: 2 | I130: 0 | J130: 15 | K130: 10 | L130: 0 | M130: 27
A131: 2006-10-17 | B131: 1926 | C131: 366 | D131: 1923 | E131: 232 | F131: 0 | G131: 4447 | H131: 2 | I131: 0 | J131: 3 | K131: 1 | L131: 0 | M131: 6
A132: 2006-10-25 | B132: 1926 | C132: 366 | D132: 1959 | E132: 232 | F132: 0 | G132: 4483 | H132: 0 | I132: 0 | J132: 4.5 | K132: 0 | L132: 0 | M132: 4.5
A133: 2006-10-26 | B133: 1926 | C133: 366 | D133: 2000 | E133: 232 | F133: 0 | G133: 4524 | H133: 0 | I133: 0 | J133: 41 | K133: 0 | L133: 0 | M133: 41
A134: 2006-10-27 | B134: 1926 | C134: 366 | D134: 2012 | E134: 232 | F134: 0 | G134: 4536 | H134: 0 | I134: 0 | J134: 12 | K134: 0 | L134: 0 | M134: 12
A135: 2006-10-28 | B135: 1926 | C135: 366 | D135: 2016 | E135: 232 | F135: 0 | G135: 4540 | H135: 0 | I135: 0 | J135: 4 | K135: 0 | L135: 0 | M135: 4
A136: 2006-10-29 | B136: 1926 | C136: 366 | D136: 2024 | E136: 232 | F136: 0 | G136: 4548 | H136: 0 | I136: 0 | J136: 8 | K136: 0 | L136: 0 | M136: 8
A137: 2006-10-31 | B137: 1926 | C137: 366 | D137: 2060 | E137: 232 | F137: 0 | G137: 4584 | H137: 0 | I137: 0 | J137: 18 | K137: 0 | L137: 0 | M137: 18
A138: 2006-11-01 | B138: 1926 | C138: 366 | D138: 2066 | E138: 232 | F138: 0 | G138: 4590 | H138: 0 | I138: 0 | J138: 6 | K138: 0 | L138: 0 | M138: 6
A139: 2006-11-02 | B139: 1926 | C139: 366 | D139: 2092 | E139: 232 | F139: 0 | G139: 4616 | H139: 0 | I139: 0 | J139: 26 | K139: 0 | L139: 0 | M139: 26
A140: 2006-11-03 | B140: 1926 | C140: 366 | D140: 2113 | E140: 232 | F140: 0 | G140: 4637 | H140: =IF(ISBLANK(B140),"",(B140-B139)/($A140-$A139)) -> 0 | I140: =IF(ISBLANK(C140),"",(C140-C139)/($A140-$A139)) -> 0 | J140: =IF(ISBLANK(D140),"",(D140-D139)/($A140-$A139)) -> 21 | K140: =IF(ISBLANK(E140),"",(E140-E139)/($A140-$A139)) -> 0 | L140: 0 | M140: 21
A141: 2006-11-04 | B141: 1926 | C141: 366 | D141: 2125 | E141: 232 | F141: 0 | G141: 4649 | H141: 0 | I141: 0 | J141: 12 | K141: 0 | L141: 0 | M141: 12
A142: 2006-11-05 | B142: 1926 | C142: 366 | D142: 2131 | E142: 232 | F142: 0 | G142: 4655 | H142: 0 | I142: 0 | J142: 6 | K142: 0 | L142: 0 | M142: 6
A143: 2006-11-06 | B143: 1926 | C143: 366 | D143: 2153 | E143: 232 | F143: 0 | G143: 4677 | H143: 0 | I143: 0 | J143: 22 | K143: 0 | L143: 0 | M143: 22
A144: 2006-11-07 | B144: 1929 | C144: 366 | D144: 2214 | E144: 232 | F144: 0 | G144: =SUM(B144:F144) -> 4741 | H144: 3 | I144: 0 | J144: 61 | K144: 0 | L144: 0 | M144: 64
A145: 2006-11-08 | B145: 1936 | C145: 366 | D145: 2245 | E145: 232 | F145: 0 | G145: 4779 | H145: 7 | I145: 0 | J145: 31 | K145: 0 | L145: =IF(ISBLANK(F145),"",(F145-F144)/($A145-$A144)) -> 0 | M145: =IF(ISBLANK(B145),"",(G145-G144)/($A145-$A144)) -> 38
A146: 2006-11-09 | B146: 1936 | C146: 366 | D146: 2275 | E146: 232 | F146: 0 | G146: 4809 | H146: 0 | I146: 0 | J146: 30 | K146: 0 | L146: 0 | M146: 30
A147: 2006-11-10 | B147: 1937 | C147: 366 | D147: 2275 | E147: 232 | F147: 0 | G147: 4810 | H147: 1 | I147: 0 | J147: 0 | K147: 0 | L147: 0 | M147: 1
A148: 2006-11-11 | B148: 1937 | C148: 366 | D148: 2284 | E148: 232 | F148: 0 | G148: 4819 | H148: 0 | I148: 0 | J148: 9 | K148: 0 | L148: 0 | M148: 9
A149: 2006-11-13 | B149: 1937 | C149: 366 | D149: 2322 | E149: 232 | F149: 0 | G149: 4857 | H149: 0 | I149: 0 | J149: 19 | K149: 0 | L149: 0 | M149: 19
A150: 2006-11-14 | B150: 1937 | C150: 366 | D150: 2340 | E150: 232 | F150: 0 | G150: 4875 | H150: 0 | I150: 0 | J150: 18 | K150: 0 | L150: 0 | M150: 18
A151: 2006-11-15 | B151: 1937 | C151: 366 | D151: 2356 | E151: 232 | F151: 0 | G151: 4891 | H151: 0 | I151: 0 | J151: 16 | K151: 0 | L151: 0 | M151: 16
A152: 2006-11-16 | B152: 1937 | C152: 366 | D152: 2378 | E152: 232 | F152: 0 | G152: 4913 | H152: =IF(ISBLANK(B152),"",(B152-B151)/($A152-$A151)) -> 0 | I152: =IF(ISBLANK(C152),"",(C152-C151)/($A152-$A151)) -> 0 | J152: =IF(ISBLANK(D152),"",(D152-D151)/($A152-$A151)) -> 22 | K152: =IF(ISBLANK(E152),"",(E152-E151)/($A152-$A151)) -> 0 | L152: 0 | M152: 22
A153: 2006-11-17 | B153: 1937 | C153: 366 | D153: 2392 | E153: 232 | F153: 0 | G153: 4927 | H153: 0 | I153: 0 | J153: 14 | K153: 0 | L153: 0 | M153: 14
A154: 2006-11-18 | B154: 1946 | C154: 366 | D154: 2422 | E154: 235 | F154: 0 | G154: 4969 | H154: 9 | I154: 0 | J154: 30 | K154: 3 | L154: 0 | M154: 42
A155: 2006-11-19 | B155: 1946 | C155: 366 | D155: 2440 | E155: 235 | F155: 0 | G155: 4987 | H155: 0 | I155: 0 | J155: 18 | K155: 0 | L155: 0 | M155: 18
A156: 2006-11-20 | B156: 1960 | C156: 366 | D156: 2458 | E156: 238 | F156: 0 | G156: 5022 | H156: 14 | I156: 0 | J156: 18 | K156: 3 | L156: 0 | M156: 35
A157: 2006-11-21 | B157: 1977 | C157: 366 | D157: 2501 | E157: 244 | F157: 0 | G157: 5088 | H157: 17 | I157: 0 | J157: 43 | K157: 6 | L157: 0 | M157: 66
A158: 2006-11-22 | B158: 1979 | C158: 366 | D158: 2519 | E158: 247 | F158: 0 | G158: 5111 | H158: 2 | I158: 0 | J158: 18 | K158: 3 | L158: 0 | M158: 23
A159: 2006-11-23 | B159: 1979 | C159: 366 | D159: 2556 | E159: 247 | F159: 0 | G159: 5148 | H159: 0 | I159: 0 | J159: 37 | K159: 0 | L159: 0 | M159: 37
A160: 2006-11-24 | B160: 1979 | C160: 366 | D160: 2577 | E160: 247 | F160: 0 | G160: 5169 | H160: 0 | I160: 0 | J160: 21 | K160: 0 | L160: 0 | M160: 21
A161: 2006-11-25 | B161: 1979 | C161: 366 | D161: 2596 | E161: 247 | F161: 0 | G161: 5188 | H161: 0 | I161: 0 | J161: 19 | K161: 0 | L161: 0 | M161: 19
A162: 2006-11-26 | B162: 1979 | C162: 366 | D162: 2604 | E162: 247 | F162: 0 | G162: 5196 | H162: =IF(ISBLANK(B162),"",(B162-B161)/($A162-$A161)) -> 0 | I162: =IF(ISBLANK(C162),"",(C162-C161)/($A162-$A161)) -> 0 | J162: =IF(ISBLANK(D162),"",(D162-D161)/($A162-$A161)) -> 8 | K162: =IF(ISBLANK(E162),"",(E162-E161)/($A162-$A161)) -> 0 | L162: 0 | M162: 8
A163: 2006-11-27 | B163: 1979 | C163: 366 | D163: 2631 | E163: 247 | F163: 0 | G163: 5223 | H163: 0 | I163: 0 | J163: 27 | K163: 0 | L163: 0 | M163: 27
A164: 2006-11-28 | B164: 1981 | C164: 366 | D164: 2648 | E164: 247 | F164: 0 | G164: 5242 | H164: 2 | I164: 0 | J164: 17 | K164: 0 | L164: 0 | M164: 19
A165: 2006-11-29 | B165: 1983 | C165: 366 | D165: 2663 | E165: 247 | F165: 0 | G165: 5259 | H165: 2 | I165: 0 | J165: 15 | K165: 0 | L165: 0 | M165: 17
A166: 2006-11-30 | B166: 1993 | C166: 366 | D166: 2664 | E166: 247 | F166: 0 | G166: 5270 | H166: 10 | I166: 0 | J166: 1 | K166: 0 | L166: 0 | M166: 11
A167: 2006-12-01 | B167: 2018 | C167: 366 | D167: 2679 | E167: 247 | F167: 0 | G167: 5310 | H167: 25 | I167: 0 | J167: 15 | K167: 0 | L167: 0 | M167: 40
A168: 2006-12-02 | B168: 2019 | C168: 366 | D168: 2694 | E168: 249 | F168: 0 | G168: 5328 | H168: 1 | I168: 0 | J168: 15 | K168: 2 | L168: 0 | M168: 18
A169: 2006-12-03 | B169: 2019 | C169: 366 | D169: 2696 | E169: 249 | F169: 0 | G169: 5330 | H169: 0 | I169: 0 | J169: 2 | K169: 0 | L169: 0 | M169: 2
A170: 2006-12-04 | B170: 2019 | C170: 366 | D170: 2714 | E170: 249 | F170: 0 | G170: 5348 | H170: 0 | I170: 0 | J170: 18 | K170: 0 | L170: 0 | M170: 18
A171: 2006-12-05 | B171: 2025 | C171: 366 | D171: 2741 | E171: 249 | F171: 0 | G171: 5381 | H171: 6 | I171: 0 | J171: 27 | K171: 0 | L171: 0 | M171: 33
A172: 2006-12-06 | B172: 2025 | C172: 366 | D172: 2777 | E172: 249 | F172: 0 | G172: 5417 | H172: 0 | I172: 0 | J172: 36 | K172: 0 | L172: 0 | M172: 36
A173: 2006-12-07 | B173: 2030 | C173: 366 | D173: 2804 | E173: 249 | F173: 0 | G173: 5449 | H173: =IF(ISBLANK(B173),"",(B173-B172)/($A173-$A172)) -> 5 | I173: =IF(ISBLANK(C173),"",(C173-C172)/($A173-$A172)) -> 0 | J173: =IF(ISBLANK(D173),"",(D173-D172)/($A173-$A172)) -> 27 | K173: =IF(ISBLANK(E173),"",(E173-E172)/($A173-$A172)) -> 0 | L173: 0 | M173: 32
A174: 2006-12-08 | B174: 2037 | C174: 366 | D174: 2821 | E174: 250 | F174: 0 | G174: 5474 | H174: 7 | I174: 0 | J174: 17 | K174: 1 | L174: 0 | M174: 25
A175: 2006-12-09 | B175: 2037 | C175: 366 | D175: 2839 | E175: 250 | F175: 0 | G175: 5492 | H175: 0 | I175: 0 | J175: 18 | K175: 0 | L175: 0 | M175: 18
A176: 2006-12-10 | B176: 2038 | C176: 366 | D176: 2842 | E176: 250 | F176: 0 | G176: 5496 | H176: 1 | I176: 0 | J176: 3 | K176: 0 | L176: 0 | M176: 4
A177: 2006-12-11 | B177: 2044 | C177: 366 | D177: 2860 | E177: 250 | F177: 0 | G177: 5520 | H177: 6 | I177: 0 | J177: 18 | K177: 0 | L177: 0 | M177: 24
A178: 2006-12-12 | B178: 2047 | C178: 366 | D178: 2895 | E178: 250 | F178: 0 | G178: 5558 | H178: 3 | I178: 0 | J178: 35 | K178: 0 | L178: 0 | M178: 38
A179: 2006-12-13 | B179: 2054 | C179: 366 | D179: 2917 | E179: 250 | F179: 0 | G179: 5587 | H179: 7 | I179: 0 | J179: 22 | K179: 0 | L179: 0 | M179: 29
A180: 2006-12-14 | B180: 2060 | C180: 366 | D180: 2943 | E180: 250 | F180: 0 | G180: 5619 | H180: 6 | I180: 0 | J180: 26 | K180: 0 | L180: 0 | M180: 32
A181: 2006-12-15 | B181: 2079 | C181: 366 | D181: 2991 | E181: 250 | F181: 0 | G181: 5686 | H181: 19 | I181: 0 | J181: 48 | K181: 0 | L181: 0 | M181: 67
A182: 2006-12-16 | B182: 2082 | C182: 366 | D182: 2996 | E182: 250 | F182: 0 | G182: 5694 | H182: =IF(ISBLANK(B182),"",(B182-B181)/($A182-$A181)) -> 3 | I182: 0 | J182: 5 | K182: 0 | L182: 0 | M182: 8
A183: 2006-12-17 | B183: 2082 | C183: 366 | D183: 3004 | E183: 250 | F183: 0 | G183: 5702 | H183: 0 | I183: 0 | J183: 8 | K183: 0 | L183: 0 | M183: 8
A184: 2006-12-18 | B184: 2086 | C184: 366 | D184: 3030 | E184: 250 | F184: 0 | G184: 5732 | H184: 4 | I184: 0 | J184: 26 | K184: 0 | L184: 0 | M184: 30
A185: 2006-12-19 | B185: 2093 | C185: 366 | D185: 3075 | E185: 250 | F185: 0 | G185: 5784 | H185: 7 | I185: 0 | J185: 45 | K185: 0 | L185: 0 | M185: 52
A186: 2006-12-20 | B186: 2115 | C186: 366 | D186: 3087 | E186: 250 | F186: 0 | G186: 5818 | H186: 22 | I186: 0 | J186: 12 | K186: 0 | L186: 0 | M186: 34
A187: 2006-12-21 | B187: 2128 | C187: 366 | D187: 3140 | E187: 250 | F187: 0 | G187: 5884 | H187: 13 | I187: 0 | J187: 53 | K187: 0 | L187: 0 | M187: 66
A188: 2006-12-22 | B188: 2138 | C188: 366 | D188: 3164 | E188: 250 | F188: 0 | G188: 5918 | H188: 10 | I188: 0 | J188: 24 | K188: 0 | L188: 0 | M188: 34
A189: 2006-12-23 | B189: 2139 | C189: 366 | D189: 3181 | E189: 250 | F189: 0 | G189: 5936 | H189: 1 | I189: 0 | J189: 17 | K189: 0 | L189: 0 | M189: 18
A190: 2006-12-28 | B190: 2140 | C190: 366 | D190: 3218 | E190: 250 | F190: 0 | G190: 5974 | H190: =IF(ISBLANK(B190),"",(B190-B189)/($A190-$A189)) -> 0.2 | I190: =IF(ISBLANK(C190),"",(C190-C189)/($A190-$A189)) -> 0 | J190: =IF(ISBLANK(D190),"",(D190-D189)/($A190-$A189)) -> 7.4 | K190: =IF(ISBLANK(E190),"",(E190-E189)/($A190-$A189)) -> 0 | L190: 0 | M190: 7.6
A191: 2006-12-29 | B191: 2151 | C191: 366 | D191: 3237 | E191: 250 | F191: 0 | G191: 6004 | H191: 11 | I191: 0 | J191: 19 | K191: 0 | L191: 0 | M191: 30
A192: 2006-12-30 | B192: 2155 | C192: 366 | D192: 3290 | E192: 250 | F192: 0 | G192: 6061 | H192: 4 | I192: 0 | J192: 53 | K192: 0 | L192: 0 | M192: 57
A193: 2006-12-31 | B193: 2155 | C193: 366 | D193: 3292 | E193: 250 | F193: 0 | G193: 6063 | H193: 0 | I193: 0 | J193: 2 | K193: 0 | L193: 0 | M193: 2
A194: 2007-01-01 | B194: 2160 | C194: 366 | D194: 3306 | E194: 250 | F194: 0 | G194: 6082 | H194: 5 | I194: 0 | J194: 14 | K194: 0 | L194: 0 | M194: 19
A195: 2007-01-02 | B195: 2171 | C195: 366 | D195: 3331 | E195: 250 | F195: 0 | G195: 6118 | H195: 11 | I195: 0 | J195: 25 | K195: 0 | L195: 0 | M195: 36
A196: 2007-01-03 | B196: 2198 | C196: 366 | D196: 3393 | E196: 250 | F196: 0 | G196: 6207 | H196: 27 | I196: 0 | J196: 62 | K196: 0 | L196: 0 | M196: 89
A197: 2007-01-04 | B197: 2229 | C197: 366 | D197: 3429 | E197: 250 | F197: 0 | G197: 6274 | H197: 31 | I197: 0 | J197: 36 | K197: 0 | L197: 0 | M197: 67
A198: 2007-01-05 | B198: 2240 | C198: 366 | D198: 3454 | E198: 250 | F198: 0 | G198: 6310 | H198: 11 | I198: 0 | J198: 25 | K198: 0 | L198: =IF(ISBLANK(F198),"",(F198-F197)/($A198-$A197)) -> 0 | M198: 36
A199: 2007-01-06 | B199: 2247 | C199: 366 | D199: 3477 | E199: 250 | F199: 0 | G199: 6340 | H199: =IF(ISBLANK(B199),"",(B199-B198)/($A199-$A198)) -> 7 | I199: 0 | J199: 23 | K199: 0 | L199: 0 | M199: 30
A200: 2007-01-07 | B200: 2255 | C200: 366 | D200: 3498 | E200: 250 | F200: 65 | G200: 6434 | H200: 8 | I200: 0 | J200: 21 | K200: 0 | L200: 65 | M200: 94
A201: 2007-01-08 | B201: 2263 | C201: 366 | D201: 3522 | E201: 250 | F201: 66 | G201: 6467 | H201: 8 | I201: 0 | J201: 24 | K201: 0 | L201: 1 | M201: 33
A202: 2007-01-09 | B202: 2281 | C202: 366 | D202: 3542 | E202: 250 | F202: 75 | G202: 6514 | H202: =IF(ISBLANK(B202),"",(B202-B201)/($A202-$A201)) -> 18 | I202: 0 | J202: 20 | K202: 0 | L202: 9 | M202: 47
A203: 2007-01-10 | B203: 2293 | C203: 366 | D203: 3560 | E203: 250 | F203: 81 | G203: 6550 | H203: 12 | I203: 0 | J203: 18 | K203: 0 | L203: 6 | M203: 36
A204: 2007-01-11 | B204: 2299 | C204: 366 | D204: 3588 | E204: 250 | F204: 87 | G204: 6590 | H204: 6 | I204: 0 | J204: 28 | K204: 0 | L204: 6 | M204: 40
A205: 2007-01-12 | B205: 2308 | C205: 366 | D205: 3619 | E205: 250 | F205: 91 | G205: 6634 | H205: 9 | I205: 0 | J205: 31 | K205: 0 | L205: 4 | M205: 44
A206: 2007-01-13 | B206: 2309 | C206: 366 | D206: 3643 | E206: 250 | F206: 91 | G206: 6659 | H206: 1 | I206: 0 | J206: 24 | K206: 0 | L206: 0 | M206: 25
A207: 2007-01-14 | B207: 2310 | C207: 366 | D207: 3653 | E207: 250 | F207: 93 | G207: 6672 | H207: 1 | I207: 0 | J207: 10 | K207: 0 | L207: 2 | M207: 13
... 42 more rows

Sheet Query
A1: Total Posts: 2,424 (4.29 posts per day) | B1: =VALUE(SUBSTITUTE(MID(A1,FIND(": ",A1)+2,FIND(" ",RIGHT(A1,LEN(A1)-FIND(": ",A1)),2)-2),",","")) -> 2424
A2: Find all posts by Wigi
A3: Find all threads started by Wigi
A5: Totaal aantal berichten: 4.926 (14,84 berichten per dag) | B5: =VALUE(SUBSTITUTE(MID(A5,FIND(": ",A5)+2,FIND(" ",RIGHT(A5,LEN(A5)-FIND(": ",A5)),2)-2),",","")) -> 4926
A6: Vind alle berichten van Wigi
A7: Zoek alle vragen die gestart zijn door Wigi
A9: Totaal aantal berichten: 377 (3,96 berichten per dag) | B9: =VALUE(SUBSTITUTE(MID(A9,FIND(": ",A9)+2,FIND(" ",RIGHT(A9,LEN(A9)-FIND(": ",A9)),2)-2),",","")) -> 377
A10: Vind alle berichten van Wigi
A11: Zoek alle onderwerpen die gestart zijn door Wigi
